[Event "Titled Tuesday Blitz May 30 Late 2023"]
[White "Skaric, Djuro"]
[Black "Silva Rosas, Natalia"]
[WhiteFideId "934569"]
[BlackFideId "3000575"]
[WhiteElo "2282"]
[BlackElo "1651"]
[Result "1-0"]
[Round "04"]
[TimeControl "180+2"]
[Date "2023.05.31"]
[WhiteClock "0:00:06"]
[BlackClock "0:00:02"]

1. g3 {[%clk 0:03:00]}  f5 {[%clk 0:02:58]} 2. Bg2 {[%clk 0:03:00]}  Nf6 {[%clk 0:02:58]} 3. d3 {[%clk 0:03:01]}  d6 {[%clk 0:02:57]} 4. Nc3 {[%clk 0:03:01]}  g6 {[%clk 0:02:57]} 5. e4 {[%clk 0:03:00]}  fxe4 {[%clk 0:02:56]} 6. dxe4 {[%clk 0:03:00]}  e5 {[%clk 0:02:55]} 7. Nge2 {[%clk 0:02:59]}  Bg7 {[%clk 0:02:54]} 8. O-O {[%clk 0:02:59]}  O-O {[%clk 0:02:53]} 9. h3 {[%clk 0:03:00]}  c6 {[%clk 0:02:53]} 10. f4 {[%clk 0:02:58]}  Nh5 {[%clk 0:02:50]} 11. f5 {[%clk 0:02:56]}  Qb6+ {[%clk 0:02:38]} 12. Kh2 {[%clk 0:02:54]}  Na6 {[%clk 0:02:25]} 13. g4 {[%clk 0:02:54]}  Nf6 {[%clk 0:02:09]} 14. Qxd6 {[%clk 0:02:45]}  gxf5 {[%clk 0:01:50]} 15. exf5 {[%clk 0:02:22]}  e4 {[%clk 0:01:33]} 16. a3 {[%clk 0:02:14]}  Rd8 {[%clk 0:01:28]} 17. Qg3 {[%clk 0:02:13]}  Bf8 {[%clk 0:01:26]} 18. Bf4 {[%clk 0:02:06]}  Nc5 {[%clk 0:01:15]} 19. b4 {[%clk 0:02:00]}  Na6 {[%clk 0:00:54]} 20. Nxe4 {[%clk 0:01:58]}  Nd5 {[%clk 0:00:45]} 21. Be5 {[%clk 0:01:49]}  Qe3 {[%clk 0:00:42]} 22. Qxe3 {[%clk 0:01:39]}  Nxe3 {[%clk 0:00:42]} 23. Rfd1 {[%clk 0:01:38]}  Nxd1 {[%clk 0:00:41]} 24. c4 {[%clk 0:01:31]}  Ne3 {[%clk 0:00:39]} 25. c5 {[%clk 0:01:28]}  Nxg2 {[%clk 0:00:38]} 26. Kxg2 {[%clk 0:01:28]}  Rd7 {[%clk 0:00:36]} 27. Nf4 {[%clk 0:01:25]}  Rf7 {[%clk 0:00:33]} 28. Ng5 {[%clk 0:01:20]}  Re7 {[%clk 0:00:30]} 29. Bf6 {[%clk 0:01:12]}  Re8 {[%clk 0:00:25]} 30. Rd1 {[%clk 0:01:08]}  Nc7 {[%clk 0:00:24]} 31. h4 {[%clk 0:01:02]}  Nd5 {[%clk 0:00:23]} 32. Nxd5 {[%clk 0:01:02]}  cxd5 {[%clk 0:00:23]} 33. Rxd5 {[%clk 0:01:01]}  Re2+ {[%clk 0:00:23]} 34. Kf3 {[%clk 0:01:01]}  Re8 {[%clk 0:00:21]} 35. Kf4 {[%clk 0:00:51]}  b6 {[%clk 0:00:21]} 36. c6 {[%clk 0:00:43]}  h6 {[%clk 0:00:21]} 37. Ne4 {[%clk 0:00:41]}  Ba6 {[%clk 0:00:16]} 38. b5 {[%clk 0:00:41]}  Bc8 {[%clk 0:00:08]} 39. g5 {[%clk 0:00:37]}  hxg5+ {[%clk 0:00:07]} 40. hxg5 {[%clk 0:00:35]}  Bxa3 {[%clk 0:00:07]} 41. Bd4 {[%clk 0:00:26]}  Bc1+ {[%clk 0:00:07]} 42. Kf3 {[%clk 0:00:25]}  Bxf5 {[%clk 0:00:06]} 43. Nf6+ {[%clk 0:00:24]}  Kf7 {[%clk 0:00:06]} 44. Rxf5 {[%clk 0:00:22]}  Red8 {[%clk 0:00:02]} 45. Nd7+ {[%clk 0:00:20]}  Ke6 {[%clk 0:00:03]} 46. Re5+ {[%clk 0:00:16]}  Kd6 {[%clk 0:00:04]} 47. g6 {[%clk 0:00:16]}  Rg8 {[%clk 0:00:02]} 48. g7 {[%clk 0:00:08]}  Rae8 {[%clk 0:00:02]} 49. Rxe8 {[%clk 0:00:06]}  Rxe8 {[%clk 0:00:02]} 50. Nf6 {[%clk 0:00:06]} 1-0


[Site "https://www.chess.com"]

[Event "Titled Tuesday Blitz May 30 Late 2023"]
[White "StarkyNZ"]
[Black "Gurevich, Dmitry"]
[BlackFideId "2000407"]
[WhiteElo "2299"]
[BlackElo "2506"]
[Result "1-0"]
[Round "04"]
[TimeControl "180+2"]
[Date "2023.05.31"]
[WhiteClock "0:00:40"]
[BlackClock "0:00:09"]

1. d4 {[%clk 0:03:00]}  d5 {[%clk 0:02:56]} 2. c4 {[%clk 0:03:01]}  e6 {[%clk 0:02:56]} 3. Nf3 {[%clk 0:03:01]}  Nf6 {[%clk 0:02:56]} 4. Nc3 {[%clk 0:03:00]}  Be7 {[%clk 0:02:56]} 5. e3 {[%clk 0:03:00]}  O-O {[%clk 0:02:56]} 6. Bd3 {[%clk 0:03:01]}  c5 {[%clk 0:02:53]} 7. cxd5 {[%clk 0:03:01]}  exd5 {[%clk 0:02:52]} 8. O-O {[%clk 0:03:01]}  Nc6 {[%clk 0:02:51]} 9. h3 {[%clk 0:03:01]}  a6 {[%clk 0:02:47]} 10. a3 {[%clk 0:02:57]}  c4 {[%clk 0:02:46]} 11. Bc2 {[%clk 0:02:56]}  b5 {[%clk 0:02:47]} 12. e4 {[%clk 0:02:53]}  dxe4 {[%clk 0:02:46]} 13. Nxe4 {[%clk 0:02:54]}  Be6 {[%clk 0:02:39]} 14. Nfg5 {[%clk 0:02:42]}  h6 {[%clk 0:02:11]} 15. Nxe6 {[%clk 0:02:41]}  fxe6 {[%clk 0:02:11]} 16. Be3 {[%clk 0:02:34]}  Qd7 {[%clk 0:02:02]} 17. Nc5 {[%clk 0:02:19]}  Bxc5 {[%clk 0:02:00]} 18. dxc5 {[%clk 0:02:20]}  Qxd1 {[%clk 0:01:53]} 19. Raxd1 {[%clk 0:02:21]}  Nd5 {[%clk 0:01:53]} 20. Be4 {[%clk 0:02:16]}  Rad8 {[%clk 0:01:51]} 21. g4 {[%clk 0:01:56]}  Ne5 {[%clk 0:01:46]} 22. Bxd5 {[%clk 0:01:49]}  exd5 {[%clk 0:01:42]} 23. Kg2 {[%clk 0:01:45]}  Nc6 {[%clk 0:01:33]} 24. Bd4 {[%clk 0:01:41]}  Rf4 {[%clk 0:01:31]} 25. Be3 {[%clk 0:01:40]}  Re4 {[%clk 0:01:31]} 26. Rfe1 {[%clk 0:01:35]}  d4 {[%clk 0:01:30]} 27. Bd2 {[%clk 0:01:32]}  Rxe1 {[%clk 0:01:15]} 28. Rxe1 {[%clk 0:01:32]}  Rd5 {[%clk 0:01:15]} 29. Re8+ {[%clk 0:01:27]}  Kf7 {[%clk 0:01:15]} 30. Rc8 {[%clk 0:01:24]}  Ne5 {[%clk 0:00:59]} 31. c6 {[%clk 0:01:23]}  Rc5 {[%clk 0:00:51]} 32. c7 {[%clk 0:01:21]}  Ke6 {[%clk 0:00:41]} 33. Re8+ {[%clk 0:01:16]}  Kd7 {[%clk 0:00:41]} 34. c8=Q+ {[%clk 0:01:15]}  Rxc8 {[%clk 0:00:41]} 35. Rxe5 {[%clk 0:01:15]}  c3 {[%clk 0:00:41]} 36. bxc3 {[%clk 0:01:13]}  dxc3 {[%clk 0:00:41]} 37. Bc1 {[%clk 0:01:12]}  c2 {[%clk 0:00:41]} 38. f4 {[%clk 0:01:09]}  Rc3 {[%clk 0:00:39]} 39. Rd5+ {[%clk 0:01:06]}  Kc6 {[%clk 0:00:38]} 40. Rd2 {[%clk 0:01:06]}  Kc5 {[%clk 0:00:36]} 41. h4 {[%clk 0:01:05]}  Kc4 {[%clk 0:00:35]} 42. g5 {[%clk 0:01:04]}  Kb3 {[%clk 0:00:31]} 43. gxh6 {[%clk 0:01:01]}  gxh6 {[%clk 0:00:30]} 44. Rf2 {[%clk 0:01:01]}  Ka2 {[%clk 0:00:24]} 45. f5 {[%clk 0:01:00]}  Kb1 {[%clk 0:00:24]} 46. Bxh6 {[%clk 0:01:00]}  Rxa3 {[%clk 0:00:19]} 47. Rf1+ {[%clk 0:00:58]}  Ka2 {[%clk 0:00:17]} 48. f6 {[%clk 0:00:56]}  Rd3 {[%clk 0:00:17]} 49. f7 {[%clk 0:00:55]}  Rd8 {[%clk 0:00:17]} 50. f8=Q {[%clk 0:00:55]}  Rxf8 {[%clk 0:00:16]} 51. Rxf8 {[%clk 0:00:55]}  b4 {[%clk 0:00:14]} 52. Ra8 {[%clk 0:00:55]}  b3 {[%clk 0:00:10]} 53. Rxa6+ {[%clk 0:00:51]}  Kb1 {[%clk 0:00:09]} 54. Rb6 {[%clk 0:00:40]} 1-0


[Site "https://www.chess.com"]

[Event "Titled Tuesday Blitz May 30 Late 2023"]
[White "Kornyukov, Alexey"]
[Black "Prydun, Andriy"]
[WhiteFideId "4150457"]
[BlackFideId "14145898"]
[WhiteElo "2352"]
[BlackElo "2164"]
[Result "0-1"]
[Round "04"]
[TimeControl "180+2"]
[Date "2023.05.31"]
[WhiteClock "0:00:05"]
[BlackClock "0:00:04"]

1. d4 {[%clk 0:02:48]}  d5 {[%clk 0:02:57]} 2. c4 {[%clk 0:02:48]}  e6 {[%clk 0:02:55]} 3. Nc3 {[%clk 0:02:48]}  Nf6 {[%clk 0:02:55]} 4. cxd5 {[%clk 0:02:49]}  exd5 {[%clk 0:02:54]} 5. Bg5 {[%clk 0:02:48]}  Be7 {[%clk 0:02:52]} 6. e3 {[%clk 0:02:48]}  O-O {[%clk 0:02:50]} 7. Bd3 {[%clk 0:02:46]}  c6 {[%clk 0:02:48]} 8. Qc2 {[%clk 0:02:43]}  Nbd7 {[%clk 0:02:44]} 9. Nf3 {[%clk 0:02:42]}  Re8 {[%clk 0:02:36]} 10. Bf4 {[%clk 0:02:41]}  Nf8 {[%clk 0:02:32]} 11. h3 {[%clk 0:02:40]}  Be6 {[%clk 0:02:10]} 12. O-O-O {[%clk 0:02:39]}  Rc8 {[%clk 0:02:09]} 13. g4 {[%clk 0:02:35]}  c5 {[%clk 0:02:03]} 14. Kb1 {[%clk 0:02:06]}  c4 {[%clk 0:01:50]} 15. Bf5 {[%clk 0:02:05]}  b5 {[%clk 0:01:46]} 16. g5 {[%clk 0:01:56]}  N6d7 {[%clk 0:01:31]} 17. Nxb5 {[%clk 0:01:33]}  Qb6 {[%clk 0:01:28]} 18. Nc3 {[%clk 0:01:28]}  Rc6 {[%clk 0:01:13]} 19. Rd2 {[%clk 0:01:14]}  Qb7 {[%clk 0:00:58]} 20. Ka1 {[%clk 0:01:10]}  Ra6 {[%clk 0:00:54]} 21. Ne5 {[%clk 0:00:42]}  Bb4 {[%clk 0:00:39]} 22. Nxd7 {[%clk 0:00:38]}  Qxd7 {[%clk 0:00:37]} 23. Bxe6 {[%clk 0:00:31]}  Nxe6 {[%clk 0:00:37]} 24. Be5 {[%clk 0:00:29]}  Rc8 {[%clk 0:00:36]} 25. h4 {[%clk 0:00:22]}  Ra5 {[%clk 0:00:35]} 26. e4 {[%clk 0:00:19]}  dxe4 {[%clk 0:00:27]} 27. Qxe4 {[%clk 0:00:16]}  Nc5 {[%clk 0:00:03]} 28. Qe2 {[%clk 0:00:05]}  Nb3+ {[%clk 0:00:03]} 29. Kb1 {[%clk 0:00:04]}  Bxc3 {[%clk 0:00:03]} 30. bxc3 {[%clk 0:00:01]}  Qf5+ {[%clk 0:00:03]} 31. Kb2 {[%clk 0:00:01]}  Nxd2 {[%clk 0:00:03]} 32. Qxd2 {[%clk 0:00:02]}  Rb5+ {[%clk 0:00:04]} 33. Ka1 {[%clk 0:00:03]}  f6 {[%clk 0:00:03]} 34. Re1 {[%clk 0:00:04]}  fxe5 {[%clk 0:00:03]} 35. dxe5 {[%clk 0:00:04]}  Rcb8 {[%clk 0:00:03]} 36. Qd6 {[%clk 0:00:05]}  Rb1+ {[%clk 0:00:03]} 37. Rxb1 {[%clk 0:00:05]}  Qxb1# {[%clk 0:00:04]} 0-1


[Site "https://www.chess.com"]

[Event "Titled Tuesday Blitz May 30 Late 2023"]
[White "Smiechu"]
[Black "ritanovikova"]
[WhiteElo "2350"]
[BlackElo "2171"]
[Result "1/2-1/2"]
[Round "04"]
[TimeControl "180+2"]
[Date "2023.05.31"]
[WhiteClock "0:01:57"]
[BlackClock "0:00:24"]

1. e4 {[%clk 0:03:00]}  d5 {[%clk 0:02:55]} 2. exd5 {[%clk 0:03:00]}  Qxd5 {[%clk 0:02:55]} 3. Nf3 {[%clk 0:03:01]}  Nf6 {[%clk 0:02:55]} 4. d4 {[%clk 0:03:01]}  Bg4 {[%clk 0:02:54]} 5. Be2 {[%clk 0:03:01]}  e6 {[%clk 0:02:54]} 6. c4 {[%clk 0:03:00]}  Qd8 {[%clk 0:02:53]} 7. Nc3 {[%clk 0:03:01]}  c6 {[%clk 0:02:52]} 8. O-O {[%clk 0:03:00]}  Be7 {[%clk 0:02:52]} 9. h3 {[%clk 0:03:00]}  Bh5 {[%clk 0:02:52]} 10. Be3 {[%clk 0:03:01]}  O-O {[%clk 0:02:51]} 11. Rc1 {[%clk 0:02:59]}  Nbd7 {[%clk 0:02:45]} 12. b3 {[%clk 0:02:54]}  Bg6 {[%clk 0:02:37]} 13. Ne5 {[%clk 0:02:51]}  Ba3 {[%clk 0:02:36]} 14. Rc2 {[%clk 0:02:40]}  Bxc2 {[%clk 0:02:35]} 15. Qxc2 {[%clk 0:02:41]}  Bd6 {[%clk 0:02:32]} 16. Ng4 {[%clk 0:02:36]}  Nxg4 {[%clk 0:02:29]} 17. Bxg4 {[%clk 0:02:36]}  Nf6 {[%clk 0:02:29]} 18. Bg5 {[%clk 0:02:36]}  Be7 {[%clk 0:02:29]} 19. Bf3 {[%clk 0:02:35]}  Qxd4 {[%clk 0:02:08]} 20. Ne4 {[%clk 0:02:32]}  Qe5 {[%clk 0:01:50]} 21. Bh4 {[%clk 0:02:26]}  Rfe8 {[%clk 0:01:43]} 22. Re1 {[%clk 0:02:25]}  Nxe4 {[%clk 0:01:34]} 23. Bxe7 {[%clk 0:02:24]}  Rxe7 {[%clk 0:01:31]} 24. Rxe4 {[%clk 0:02:22]}  Qa1+ {[%clk 0:01:17]} 25. Kh2 {[%clk 0:02:22]}  g6 {[%clk 0:01:14]} 26. Qd2 {[%clk 0:02:17]}  Qf6 {[%clk 0:00:48]} 27. Rf4 {[%clk 0:02:14]}  Qe5 {[%clk 0:00:46]} 28. g3 {[%clk 0:02:11]}  Qc7 {[%clk 0:00:43]} 29. Rd4 {[%clk 0:02:10]}  Ree8 {[%clk 0:00:36]} 30. Qh6 {[%clk 0:02:07]}  Qe5 {[%clk 0:00:32]} 31. Qd2 {[%clk 0:02:04]}  Rab8 {[%clk 0:00:26]} 32. Re4 {[%clk 0:02:02]}  Qf6 {[%clk 0:00:26]} 33. Rf4 {[%clk 0:02:01]}  Qe7 {[%clk 0:00:26]} 34. Rh4 {[%clk 0:01:59]}  Qf6 {[%clk 0:00:25]} 35. Rf4 {[%clk 0:01:58]}  Qg7 {[%clk 0:00:24]} 36. Rd4 {[%clk 0:01:57]}  Qf6 {[%clk 0:00:24]} 37. Rf4 {[%clk 0:01:57]} 1/2-1/2


[Site "https://www.chess.com"]

[Event "Titled Tuesday Blitz May 30 Late 2023"]
[White "Tomiello, Mateus Costamilan"]
[Black "Schut, Han"]
[WhiteFideId "22701958"]
[BlackFideId "1005561"]
[WhiteElo "1990"]
[BlackElo "2024"]
[Result "1-0"]
[Round "04"]
[TimeControl "180+2"]
[Date "2023.05.31"]
[WhiteClock "0:00:36"]
[BlackClock "0:00:13"]

1. e4 {[%clk 0:03:00]}  c5 {[%clk 0:02:59]} 2. Nf3 {[%clk 0:03:01]}  d6 {[%clk 0:02:59]} 3. d4 {[%clk 0:03:01]}  cxd4 {[%clk 0:02:59]} 4. Nxd4 {[%clk 0:03:01]}  Nf6 {[%clk 0:03:00]} 5. Nc3 {[%clk 0:03:02]}  a6 {[%clk 0:03:00]} 6. Bg5 {[%clk 0:02:59]}  e6 {[%clk 0:03:01]} 7. f4 {[%clk 0:02:58]}  Be7 {[%clk 0:03:00]} 8. Qf3 {[%clk 0:02:58]}  h6 {[%clk 0:03:00]} 9. Bh4 {[%clk 0:02:43]}  g5 {[%clk 0:03:00]} 10. fxg5 {[%clk 0:02:41]}  Nfd7 {[%clk 0:03:01]} 11. O-O-O {[%clk 0:02:02]}  Ne5 {[%clk 0:02:59]} 12. Qe3 {[%clk 0:01:51]}  hxg5 {[%clk 0:02:54]} 13. Bg3 {[%clk 0:01:51]}  Nbd7 {[%clk 0:02:53]} 14. Be2 {[%clk 0:01:49]}  Qc7 {[%clk 0:02:51]} 15. Rdf1 {[%clk 0:01:46]}  b5 {[%clk 0:02:50]} 16. Nf3 {[%clk 0:01:40]}  Bb7 {[%clk 0:02:33]} 17. Nxe5 {[%clk 0:01:40]}  Nxe5 {[%clk 0:02:32]} 18. Qf2 {[%clk 0:01:35]}  Rh7 {[%clk 0:02:12]} 19. Bxe5 {[%clk 0:01:23]}  dxe5 {[%clk 0:02:12]} 20. Bh5 {[%clk 0:01:23]}  O-O-O {[%clk 0:01:14]} 21. Bxf7 {[%clk 0:01:20]}  b4 {[%clk 0:01:06]} 22. Bxe6+ {[%clk 0:01:19]}  Kb8 {[%clk 0:01:06]} 23. Nd5 {[%clk 0:01:19]}  Bxd5 {[%clk 0:00:50]} 24. Bxd5 {[%clk 0:01:19]}  Bc5 {[%clk 0:00:43]} 25. Qe2 {[%clk 0:01:19]}  Qb6 {[%clk 0:00:42]} 26. Rf5 {[%clk 0:01:12]}  Bd4 {[%clk 0:00:39]} 27. h3 {[%clk 0:01:07]}  Rc7 {[%clk 0:00:38]} 28. Rhf1 {[%clk 0:00:55]}  Rdc8 {[%clk 0:00:36]} 29. Rf8 {[%clk 0:00:55]}  a5 {[%clk 0:00:24]} 30. Rxc8+ {[%clk 0:00:54]}  Rxc8 {[%clk 0:00:25]} 31. Rf7 {[%clk 0:00:51]}  Rc7 {[%clk 0:00:23]} 32. Rf8+ {[%clk 0:00:49]}  Rc8 {[%clk 0:00:22]} 33. Rxc8+ {[%clk 0:00:47]}  Kxc8 {[%clk 0:00:22]} 34. Qg4+ {[%clk 0:00:46]}  Kb8 {[%clk 0:00:18]} 35. Qd7 {[%clk 0:00:44]}  Bxb2+ {[%clk 0:00:17]} 36. Kxb2 {[%clk 0:00:36]}  Qd4+ {[%clk 0:00:17]} 37. Kb3 {[%clk 0:00:36]}  Qc3+ {[%clk 0:00:15]} 38. Ka4 {[%clk 0:00:36]}  Qa3+ {[%clk 0:00:13]} 39. Kb5 {[%clk 0:00:36]} 1-0


[Site "https://www.chess.com"]

[Event "Titled Tuesday Blitz May 30 Late 2023"]
[White "Remolar Gallen, Jose"]
[Black "Martinez, Ayelen"]
[WhiteFideId "2215187"]
[BlackFideId "118702"]
[WhiteElo "2223"]
[BlackElo "2125"]
[Result "1-0"]
[Round "04"]
[TimeControl "180+2"]
[Date "2023.05.31"]
[WhiteClock "0:00:22"]
[BlackClock "0:00:01"]

1. e4 {[%clk 0:02:55]}  c5 {[%clk 0:02:59]} 2. Nf3 {[%clk 0:02:54]}  d6 {[%clk 0:02:59]} 3. d4 {[%clk 0:02:54]}  cxd4 {[%clk 0:03:00]} 4. Nxd4 {[%clk 0:02:55]}  Nf6 {[%clk 0:03:00]} 5. Nc3 {[%clk 0:02:55]}  a6 {[%clk 0:03:01]} 6. Be3 {[%clk 0:02:53]}  e5 {[%clk 0:03:01]} 7. Nb3 {[%clk 0:02:53]}  Be7 {[%clk 0:03:01]} 8. Be2 {[%clk 0:02:50]}  O-O {[%clk 0:03:00]} 9. a4 {[%clk 0:02:50]}  Be6 {[%clk 0:02:57]} 10. O-O {[%clk 0:02:47]}  Nc6 {[%clk 0:02:56]} 11. a5 {[%clk 0:02:45]}  Rc8 {[%clk 0:02:55]} 12. Bb6 {[%clk 0:02:32]}  Qd7 {[%clk 0:02:36]} 13. Bf3 {[%clk 0:02:28]}  Nb4 {[%clk 0:02:31]} 14. Qe2 {[%clk 0:02:12]}  d5 {[%clk 0:02:25]} 15. exd5 {[%clk 0:02:07]}  Nfxd5 {[%clk 0:02:26]} 16. Rfd1 {[%clk 0:02:07]}  Qc6 {[%clk 0:01:53]} 17. Qd2 {[%clk 0:01:45]}  Rfd8 {[%clk 0:01:04]} 18. Bxd8 {[%clk 0:01:45]}  Rxd8 {[%clk 0:01:05]} 19. Nxd5 {[%clk 0:01:39]}  Bxd5 {[%clk 0:00:52]} 20. c3 {[%clk 0:01:22]}  h6 {[%clk 0:00:24]} 21. Bxd5 {[%clk 0:01:07]}  Rxd5 {[%clk 0:00:25]} 22. Qe2 {[%clk 0:01:05]}  Rxd1+ {[%clk 0:00:21]} 23. Rxd1 {[%clk 0:01:02]}  Qa4 {[%clk 0:00:18]} 24. Qc4 {[%clk 0:00:59]}  Qa2 {[%clk 0:00:11]} 25. cxb4 {[%clk 0:00:57]}  Qxb2 {[%clk 0:00:12]} 26. Nc5 {[%clk 0:00:54]}  e4 {[%clk 0:00:10]} 27. Nxe4 {[%clk 0:00:50]}  Bxb4 {[%clk 0:00:07]} 28. Qc8+ {[%clk 0:00:36]}  Bf8 {[%clk 0:00:07]} 29. h3 {[%clk 0:00:32]}  Qe2 {[%clk 0:00:05]} 30. Nc3 {[%clk 0:00:31]}  Qc2 {[%clk 0:00:02]} 31. Re1 {[%clk 0:00:25]}  Qd2 {[%clk 0:00:01]} 32. Rf1 {[%clk 0:00:25]}  Qc2 {[%clk 0:00:01]} 33. Qc7 {[%clk 0:00:22]} 1-0


[Site "https://www.chess.com"]

[Event "Titled Tuesday Blitz May 30 Late 2023"]
[White "Alexikov, Alexander"]
[Black "mohsengabr2002"]
[WhiteFideId "14103958"]
[WhiteElo "2186"]
[BlackElo "2222"]
[Result "1/2-1/2"]
[Round "04"]
[TimeControl "180+2"]
[Date "2023.05.31"]
[WhiteClock "0:00:12"]
[BlackClock "0:00:55"]

1. e4 {[%clk 0:03:00]}  e6 {[%clk 0:02:48]} 2. d4 {[%clk 0:02:58]}  d5 {[%clk 0:02:48]} 3. Nc3 {[%clk 0:02:59]}  dxe4 {[%clk 0:02:47]} 4. Nxe4 {[%clk 0:02:58]}  Nd7 {[%clk 0:02:46]} 5. Nf3 {[%clk 0:02:58]}  Ngf6 {[%clk 0:02:47]} 6. Nxf6+ {[%clk 0:02:58]}  Nxf6 {[%clk 0:02:47]} 7. Ne5 {[%clk 0:02:58]}  c5 {[%clk 0:02:46]} 8. Bb5+ {[%clk 0:02:43]}  Bd7 {[%clk 0:02:45]} 9. Bxd7+ {[%clk 0:02:42]}  Nxd7 {[%clk 0:02:45]} 10. O-O {[%clk 0:02:41]}  Nxe5 {[%clk 0:02:43]} 11. dxe5 {[%clk 0:02:40]}  Qxd1 {[%clk 0:02:44]} 12. Rxd1 {[%clk 0:02:40]}  Be7 {[%clk 0:02:37]} 13. Be3 {[%clk 0:02:39]}  Rd8 {[%clk 0:02:32]} 14. c4 {[%clk 0:02:34]}  b6 {[%clk 0:02:30]} 15. f4 {[%clk 0:02:21]}  f6 {[%clk 0:02:28]} 16. exf6 {[%clk 0:02:07]}  gxf6 {[%clk 0:02:27]} 17. Bd2 {[%clk 0:01:52]}  Rd4 {[%clk 0:02:21]} 18. b3 {[%clk 0:01:46]}  Kf7 {[%clk 0:02:21]} 19. Kf2 {[%clk 0:01:43]}  Rhd8 {[%clk 0:02:20]} 20. Ke2 {[%clk 0:01:42]}  f5 {[%clk 0:02:20]} 21. Be3 {[%clk 0:01:37]}  R4d7 {[%clk 0:02:05]} 22. Rxd7 {[%clk 0:01:36]}  Rxd7 {[%clk 0:02:06]} 23. a4 {[%clk 0:01:28]}  Bf6 {[%clk 0:02:05]} 24. Rg1 {[%clk 0:01:25]}  h5 {[%clk 0:02:03]} 25. a5 {[%clk 0:01:21]}  Rb7 {[%clk 0:01:52]} 26. a6 {[%clk 0:01:16]}  Rd7 {[%clk 0:01:52]} 27. Rb1 {[%clk 0:01:12]}  Bd4 {[%clk 0:01:49]} 28. Bd2 {[%clk 0:01:11]}  Ke7 {[%clk 0:01:34]} 29. b4 {[%clk 0:01:10]}  Kd6 {[%clk 0:01:33]} 30. b5 {[%clk 0:01:03]}  Rg7 {[%clk 0:01:31]} 31. g3 {[%clk 0:01:02]}  h4 {[%clk 0:01:28]} 32. Kf3 {[%clk 0:01:01]}  hxg3 {[%clk 0:01:24]} 33. hxg3 {[%clk 0:01:00]}  Rh7 {[%clk 0:01:24]} 34. Be3 {[%clk 0:01:00]}  Bxe3 {[%clk 0:01:20]} 35. Kxe3 {[%clk 0:00:58]}  Rh2 {[%clk 0:01:20]} 36. Rd1+ {[%clk 0:00:56]}  Ke7 {[%clk 0:01:20]} 37. Rc1 {[%clk 0:00:51]}  Rb2 {[%clk 0:01:15]} 38. Kf3 {[%clk 0:00:50]}  Rb3+ {[%clk 0:01:15]} 39. Kg2 {[%clk 0:00:50]}  Kf6 {[%clk 0:01:15]} 40. Kh3 {[%clk 0:00:50]}  Rb2 {[%clk 0:01:10]} 41. Rd1 {[%clk 0:00:46]}  Rc2 {[%clk 0:01:09]} 42. Rd7 {[%clk 0:00:45]}  Rxc4 {[%clk 0:01:10]} 43. Rxa7 {[%clk 0:00:44]}  Rb4 {[%clk 0:01:10]} 44. Rb7 {[%clk 0:00:42]}  Rxb5 {[%clk 0:01:10]} 45. a7 {[%clk 0:00:42]}  Ra5 {[%clk 0:01:11]} 46. g4 {[%clk 0:00:42]}  Ra3+ {[%clk 0:01:07]} 47. Kh4 {[%clk 0:00:42]}  fxg4 {[%clk 0:01:07]} 48. Kxg4 {[%clk 0:00:42]}  c4 {[%clk 0:01:08]} 49. Rxb6 {[%clk 0:00:32]}  Rxa7 {[%clk 0:01:07]} 50. f5 {[%clk 0:00:33]}  Rc7 {[%clk 0:01:04]} 51. Rxe6+ {[%clk 0:00:30]}  Kf7 {[%clk 0:01:04]} 52. Re2 {[%clk 0:00:28]}  c3 {[%clk 0:01:04]} 53. Rc2 {[%clk 0:00:28]}  Kf6 {[%clk 0:01:03]} 54. Kf4 {[%clk 0:00:28]}  Rc4+ {[%clk 0:01:03]} 55. Ke3 {[%clk 0:00:28]}  Kxf5 {[%clk 0:01:03]} 56. Kd3 {[%clk 0:00:28]}  Rc8 {[%clk 0:01:03]} 57. Rxc3 {[%clk 0:00:28]}  Rd8+ {[%clk 0:01:03]} 58. Ke3 {[%clk 0:00:27]}  Re8+ {[%clk 0:01:03]} 59. Kf3 {[%clk 0:00:28]}  Re5 {[%clk 0:01:02]} 60. Rc4 {[%clk 0:00:28]}  Ra5 {[%clk 0:01:02]} 61. Rb4 {[%clk 0:00:27]}  Ra3+ {[%clk 0:01:02]} 62. Ke2 {[%clk 0:00:27]}  Rh3 {[%clk 0:01:02]} 63. Kd2 {[%clk 0:00:27]}  Ke5 {[%clk 0:01:01]} 64. Ke2 {[%clk 0:00:27]}  Kd5 {[%clk 0:01:01]} 65. Kf2 {[%clk 0:00:28]}  Ke5 {[%clk 0:01:01]} 66. Rg4 {[%clk 0:00:27]}  Kf5 {[%clk 0:01:01]} 67. Rb4 {[%clk 0:00:27]}  Ke5 {[%clk 0:01:01]} 68. Kg2 {[%clk 0:00:27]}  Ra3 {[%clk 0:01:01]} 69. Kf2 {[%clk 0:00:26]}  Kd5 {[%clk 0:01:01]} 70. Ke2 {[%clk 0:00:26]}  Kc5 {[%clk 0:01:01]} 71. Rf4 {[%clk 0:00:26]}  Rh3 {[%clk 0:01:01]} 72. Kd2 {[%clk 0:00:26]}  Kd5 {[%clk 0:01:01]} 73. Ke2 {[%clk 0:00:26]}  Ke5 {[%clk 0:01:01]} 74. Ra4 {[%clk 0:00:26]}  Rh2+ {[%clk 0:01:01]} 75. Kf3 {[%clk 0:00:26]}  Rh3+ {[%clk 0:01:01]} 76. Kg4 {[%clk 0:00:26]}  Rb3 {[%clk 0:01:00]} 77. Ra5+ {[%clk 0:00:26]}  Kd6 {[%clk 0:01:00]} 78. Kf4 {[%clk 0:00:23]}  Kc6 {[%clk 0:00:59]} 79. Ke4 {[%clk 0:00:23]}  Rh3 {[%clk 0:00:59]} 80. Rg5 {[%clk 0:00:23]}  Ra3 {[%clk 0:00:58]} 81. Kd4 {[%clk 0:00:23]}  Ra4+ {[%clk 0:00:58]} 82. Kc3 {[%clk 0:00:22]}  Ra1 {[%clk 0:00:58]} 83. Rg6+ {[%clk 0:00:22]}  Kd5 {[%clk 0:00:58]} 84. Rg5+ {[%clk 0:00:23]}  Ke6 {[%clk 0:00:58]} 85. Rg6+ {[%clk 0:00:22]}  Kf5 {[%clk 0:00:58]} 86. Rd6 {[%clk 0:00:22]}  Rc1+ {[%clk 0:00:58]} 87. Kd2 {[%clk 0:00:21]}  Rc8 {[%clk 0:00:58]} 88. Kd3 {[%clk 0:00:21]}  Ke5 {[%clk 0:00:58]} 89. Rb6 {[%clk 0:00:20]}  Rc1 {[%clk 0:00:58]} 90. Kd2 {[%clk 0:00:19]}  Rc8 {[%clk 0:00:57]} 91. Ke3 {[%clk 0:00:19]}  Kd5 {[%clk 0:00:57]} 92. Kd3 {[%clk 0:00:18]}  Kc5 {[%clk 0:00:57]} 93. Rg6 {[%clk 0:00:19]}  Rd8+ {[%clk 0:00:57]} 94. Kc3 {[%clk 0:00:18]}  Rd5 {[%clk 0:00:56]} 95. Rg4 {[%clk 0:00:17]}  Rh5 {[%clk 0:00:56]} 96. Rg6 {[%clk 0:00:17]}  Rh3+ {[%clk 0:00:56]} 97. Kd2 {[%clk 0:00:17]}  Rh1 {[%clk 0:00:56]} 98. Kd3 {[%clk 0:00:16]}  Kd5 {[%clk 0:00:56]} 99. Rg5+ {[%clk 0:00:16]}  Ke6 {[%clk 0:00:56]} 100. Rg3 {[%clk 0:00:15]}  Ra1 {[%clk 0:00:55]} 101. Ke4 {[%clk 0:00:16]}  Ra4+ {[%clk 0:00:54]} 102. Kf3 {[%clk 0:00:16]}  Kf5 {[%clk 0:00:55]} 103. Rg2 {[%clk 0:00:15]}  Ra3+ {[%clk 0:00:55]} 104. Kf2 {[%clk 0:00:15]}  Kf4 {[%clk 0:00:55]} 105. Rg8 {[%clk 0:00:14]}  Ra2+ {[%clk 0:00:55]} 106. Ke1 {[%clk 0:00:14]}  Ke3 {[%clk 0:00:55]} 107. Rg3+ {[%clk 0:00:12]} 1/2-1/2


[Site "https://www.chess.com"]